bitfinex-derivatives/quotes_SOLF0:USTF0_20250319
["timestamp","ask_amount","ask_price","bid_price","bid_amount"]
[1742409272328,0.05093563,130.55,130.52,0.05652271]
[1742409272727,7.6609,130.53,130.52,0.05652271]
[1742409272927,0.05093563,130.55,130.48,82.82564206]
[1742409272928,65.96311937,130.55,130.48,82.82564206]
[1742409273123,3.9819,130.54,130.48,82.82564206]
[1742409273626,7.6623,130.51,130.48,41.62564206]
[1742409273929,24.71218374,130.52,130.49,41.62564206]
[1742409274232,24.71218374,130.5,130.48,71.3388046]
[1742409274429,24.71218374,130.5,130.47,148.92943132]
[1742409274630,7.6638,130.48,130.47,148.92943132]
[1742409275434,24.71218374,130.5,130.47,148.92943132]
[1742409275627,41.25870279,130.51,130.47,148.92943132]
[1742409275828,0.05870279,130.51,130.47,148.92943132]
[1742409276825,0.05870279,130.51,130.48,7.6635]
[1742409277132,0.05870279,130.51,130.46,0.05117088]
[1742409277327,0.05870279,130.51,130.49,7.6629]
[1742409277721,0.05870279,130.51,130.49,0.05410729]
[1742409278126,0.05870279,130.51,130.5,7.6626]
[1742409278330,365.0,130.59,130.49,8.65880729]
[1742409278331,406.18,130.59,130.49,8.65880729]
[1742409278532,271.04,130.6,130.54,7.6599]
[1742409278831,7.6577,130.59,130.49,8.6047]
[1742409279023,271.04,130.6,130.49,8.6047]
[1742409279225,229.86,130.6,130.52,24.71218374]
[1742409279428,0.05691161,130.56,130.53,45.46532657]
[1742409279624,0.05691161,130.56,130.55,7.6597]
[1742409279824,594.86,130.65,130.53,45.46532657]
[1742409280028,65.87218374,130.64,130.53,45.4165]
[1742409280435,24.71218374,130.6,130.53,45.4165]
[1742409280732,24.71218374,130.6,130.54,7.6602]
[1742409280933,0.05409796,130.58,130.56,0.05436719]
[1742409283637,0.05409796,130.58,130.57,7.6585]
[1742409284936,229.86,130.65,130.56,24.76655093]
[1742409285137,35.30767886,130.69,130.58,24.71218374]
[1742409285339,76.44767886,130.69,130.64,7.6541]
[1742409285530,7.6524,130.68,130.64,7.6541]
[1742409285731,35.30767886,130.69,130.59,41.14]
[1742409285933,35.30767886,130.69,130.65,7.6534]
[1742409286136,0.05489048,130.68,130.65,7.6534]
[1742409286331,0.05489048,130.68,130.66,0.05213691]
[1742409286533,7.6522,130.68,130.63,41.12]
[1742409286735,0.05024489,130.68,130.66,0.04880067]
[1742409287536,7.6527,130.67,130.66,0.04880067]
[1742409287739,0.05024489,130.68,130.66,0.04880067]
[1742409288740,0.05024489,130.68,130.6,41.1]
[1742409288937,24.71218374,130.69,130.6,41.1]
[1742409289139,7.6543,130.65,130.6,41.1]
[1742409289342,24.71218374,130.69,130.6,41.1]
[1742409289642,7.6536,130.66,130.6,48.7564]
[1742409289843,0.05543572,130.66,130.63,0.0514873]
[1742409290942,7.6544,130.64,130.63,0.0514873]
[1742409291241,0.05543572,130.66,130.63,0.0514873]
[1742409291639,7.6544,130.64,130.63,0.0514873]
[1742409294344,24.76761946,130.66,130.5,359.0]
[1742409294545,24.71218374,130.62,130.52,53.1804]
[1742409294745,41.06,130.61,130.46,229.7]
[1742409295044,24.71218374,130.59,130.48,41.06]
[1742409295247,41.06,130.61,130.5,24.71218374]
[1742409295441,0.05252616,130.56,130.53,0.05801899]
[1742409295748,0.05252616,130.56,130.5,24.71218374]
[1742409295944,0.05252616,130.56,130.53,0.05584867]
[1742409296143,45.1454,130.65,130.53,24.76803241]
[1742409296350,24.71218374,130.63,130.54,7.9837]
[1742409297038,7.6588,130.57,130.54,7.9837]
[1742409297240,7.6588,130.57,130.54,8.03943089]
[1742409297444,7.70935051,130.57,130.54,8.03943089]
[1742409298951,7.70935051,130.57,130.54,15.69953089]
[1742409299544,0.05055051,130.57,130.54,8.03943089]
[1742409300249,0.05055051,130.57,130.56,7.6591]
[1742409300447,0.05055051,130.57,130.54,8.03943089]
[1742409300651,0.05055051,130.57,130.56,7.6591]
[1742409300948,24.71218374,130.63,130.56,7.6591]
[1742409301253,41.02,130.67,130.56,65.73218374]
[1742409301439,24.71218374,130.66,130.57,4.1676]
[1742409301644,7.6567,130.61,130.58,7.6578]
[1742409302047,24.71218374,130.66,130.57,4.1676]
[1742409302251,0.05590984,130.61,130.58,0.05713162]
[1742409302653,0.05590984,130.61,130.57,28.87978374]
[1742409302953,0.05590984,130.61,130.58,0.05390042]
[1742409303657,0.05590984,130.61,130.6,7.6568]
[1742409304846,1.53057319,130.67,130.64,7.6539]
[1742409305046,1.53057319,130.67,130.61,3.992]
[1742409305244,7.6539,130.65,130.61,3.992]
[1742409305453,7.6539,130.65,130.62,7.6551]
[1742409305948,7.6535,130.66,130.62,7.6553]
[1742409306154,0.05202044,130.65,130.62,7.70536817]
[1742409306449,0.05202044,130.65,130.62,0.05006817]
[1742409306657,0.05202044,130.65,130.63,7.6546]
[1742409306856,0.05202044,130.65,130.62,0.05006817]
[1742409307051,0.05202044,130.65,130.62,7.70546817]
[1742409307452,0.05202044,130.65,130.62,0.05006817]
[1742409307658,7.655,130.63,130.62,0.05006817]
[1742409307849,7.655,130.63,130.54,3.9152]
[1742409307850,24.71218374,130.63,130.55,40.98]
[1742409308044,7.657,130.6,130.55,40.98]
[1742409308249,24.71218374,130.63,130.54,7.8641]
[1742409308450,40.98,130.62,130.54,48.8441]
[1742409309053,0.05004797,130.59,130.57,0.05031653]
[1742409309354,7.6579,130.58,130.57,0.05031653]
[1742409309549,0.05004797,130.59,130.57,0.05031653]
[1742409310159,7.6579,130.58,130.57,0.05031653]
[1742409310758,7.70764797,130.59,130.57,0.05031653]
[1742409310959,0.05004797,130.59,130.57,0.05031653]
[1742409311756,0.05004797,130.59,130.58,7.6579]
[1742409311961,28.92168374,130.66,130.57,0.05031653]
[1742409312262,28.92168374,130.66,130.59,7.657]
[1742409312451,28.92168374,130.66,130.54,48.8441]
[1742409312654,24.71218374,130.63,130.54,48.8441]
[1742409312855,65.67218374,130.63,130.54,15.5244]
[1742409313056,0.05598346,130.6,130.54,7.8641]
[1742409313353,0.05598346,130.6,130.57,0.04990212]
[1742409313758,0.05598346,130.6,130.58,7.6578]
[1742409314150,0.05598346,130.6,130.57,0.04990212]
[1742409314766,0.05598346,130.6,130.57,40.98990212]
[1742409315664,0.05598346,130.6,130.58,7.6576]
[1742409315963,0.05598346,130.6,130.57,40.98990212]
[1742409316166,0.05598346,130.6,130.58,7.6576]
[1742409316366,0.05598346,130.6,130.57,40.98990212]
[1742409317166,0.05598346,130.6,130.57,0.04990212]
[1742409317369,7.6576,130.59,130.57,0.04990212]
[1742409318068,0.05598346,130.6,130.57,0.04990212]
[1742409319762,7.71308346,130.6,130.57,7.70810212]
[1742409320461,0.05598346,130.6,130.57,0.04990212]
[1742409320868,0.05598346,130.6,130.58,7.6577]
[1742409321064,0.05598346,130.6,130.57,0.04990212]
[1742409321373,83.2819805,130.7,130.58,65.61218374]
[1742409321566,42.3819805,130.7,130.61,24.71218374]
[1742409321766,7.6525,130.68,130.65,7.6537]
[1742409322165,42.3819805,130.71,130.62,44.9033]
[1742409322367,0.0544282,130.68,130.65,0.05764064]
[1742409322563,0.0544282,130.68,130.66,40.9]
[1742409322759,0.0544282,130.68,130.66,45.1378]
[1742409323371,0.0544282,130.68,130.67,7.6527]
[1742409323573,42.3819805,130.71,130.66,45.1378]
[1742409324069,42.3819805,130.71,130.67,7.6524]
[1742409324271,42.3819805,130.71,130.66,45.1378]
[1742409324470,24.71218374,130.72,130.62,4.0033]
[1742409324659,0.05029264,130.7,130.67,0.05779337]
[1742409325064,7.6521,130.68,130.67,0.05779337]
[1742409327072,7.6518,130.69,130.67,0.05779337]
[1742409327263,0.05029264,130.7,130.67,0.05779337]
[1742409327669,0.05029264,130.7,130.69,7.6515]
[1742409327869,0.05029264,130.7,130.67,40.91779337]
[1742409328669,4.0442,130.77,130.68,8.4635]
[1742409328870,4.0442,130.77,130.7,7.6506]
[1742409329072,4.0442,130.77,130.68,8.4635]
[1742409329266,4.0442,130.77,130.69,7.6512]
[1742409329466,7.6506,130.71,130.68,8.4635]
[1742409329773,0.04832073,130.71,130.68,0.05674534]
[1742409332066,7.6515,130.69,130.68,0.05674534]
[1742409333973,7.6515,130.69,130.68,4.534e-05]
[1742409334175,4.0866,130.7,130.62,40.82]
[1742409334374,52.7943,130.7,130.62,40.82]
[1742409334678,7.6542,130.65,130.62,40.82]
[1742409335273,0.04932177,130.65,130.62,48.52655873]
[1742409336180,0.04932177,130.65,130.62,0.05095873]
[1742409336472,0.04932177,130.65,130.62,40.85095873]
[1742409337281,229.56,130.72,130.66,7.653]
[1742409337481,229.56,130.72,130.62,40.8]
[1742409338176,24.71218374,130.7,130.62,40.8]
[1742409338379,0.0503945,130.68,130.66,0.05249751]
[1742409338881,7.6527,130.67,130.66,0.05249751]
[1742409339078,24.76257824,130.68,130.6,4.153]
[1742409339286,24.76257824,130.68,130.52,229.58]
[1742409339287,24.71218374,130.64,130.53,24.71218374]
[1742409339492,24.71218374,130.64,130.54,44.7187]
[1742409339783,24.71218374,130.64,130.54,48.8194]
[1742409339985,40.78,130.66,130.54,48.8194]
[1742409340185,7.6549,130.64,130.54,48.8194]
[1742409340385,0.05245082,130.61,130.59,0.05678942]
[1742409340583,40.78,130.66,130.59,0.05678942]
[1742409340584,24.71218374,130.65,130.59,40.83678942]
[1742409340783,7.6568,130.6,130.59,0.05678942]
[1742409340978,0.05550143,130.61,130.59,0.05678942]
[1742409341888,0.05550143,130.61,130.6,7.6568]
[1742409342181,0.05550143,130.61,130.59,0.05678942]
[1742409342591,0.05550143,130.61,130.59,7.71398942]
[1742409342782,0.05550143,130.61,130.59,0.05678942]
[1742409342979,0.05550143,130.61,130.6,7.6568]
[1742409343185,42.3819805,130.74,130.64,12.35609187]
[1742409343392,1.52987072,130.73,130.65,40.76]
[1742409343579,1.52987072,130.73,130.64,12.35609187]
[1742409343784,24.71218374,130.72,130.65,40.76]
[1742409344090,1.53010481,130.71,130.68,7.6519]
[1742409344287,0.05455271,130.7,130.68,40.76]
[1742409344488,1.58477459,130.7,130.68,40.76]
[1742409344888,1.58477459,130.7,130.69,7.6511]
[1742409345088,1.58477459,130.7,130.68,40.76]
[1742409345283,0.05455271,130.7,130.68,40.76]
[1742409345895,0.05455271,130.7,130.69,7.6515]
[1742409346599,0.05455271,130.7,130.68,40.76]
[1742409348196,24.76673645,130.7,130.67,0.05863875]
[1742409348398,24.71218374,130.68,130.61,40.74]
[1742409349504,12.35609187,130.63,130.57,10.48497403]
[1742409349702,12.35609187,130.61,130.57,10.48497403]
[1742409350002,20.06446579,130.61,130.59,0.05753208]
[1742409350501,7.6568,130.6,130.59,0.05753208]
[1742409350901,7.6579,130.58,130.57,10.48497403]
[1742409351696,12.35609187,130.6,130.51,40.72]
[1742409352101,0.05537024,130.57,130.54,0.04896955]
[1742409352304,7.71427024,130.57,130.54,0.04896955]
[1742409352499,0.05537024,130.57,130.54,0.04896955]
[1742409352898,7.6596,130.56,130.54,0.04896955]
[1742409353402,0.05537024,130.57,130.54,0.04896955]
[1742409354504,7.6597,130.55,130.54,0.04896955]
[1742409355802,0.05537024,130.57,130.54,0.04896955]
[1742409356206,7.6597,130.55,130.54,0.04896955]
[1742409356607,0.05537024,130.57,130.54,0.04896955]
[1742409356907,7.6597,130.56,130.54,0.04896955]
[1742409357107,0.05537024,130.57,130.54,0.04896955]
[1742409357606,7.6597,130.55,130.54,0.04896955]
[1742409357808,0.05537024,130.57,130.49,4.2081]
[1742409358009,40.72,130.58,130.47,40.7]
[1742409358209,7.663,130.5,130.46,15.6663]
[1742409358409,65.41218374,130.54,130.46,8.0014]
[1742409358808,7.6626,130.5,130.46,15.6661]
[1742409359006,7.6626,130.5,130.49,0.05338462]
[1742409360209,0.05518025,130.51,130.49,0.05338462]
[1742409360410,40.7,130.57,130.49,24.76556836]
[1742409360606,7.6589,130.57,130.49,32.82588374]
[1742409360808,282.4574,130.61,130.51,24.71218374]
[1742409361210,24.71218374,130.6,130.49,32.82588374]
[1742409361611,0.05530737,130.56,130.53,0.05589804]
[1742409362910,7.6603,130.54,130.53,0.05589804]
[1742409364414,24.71218374,130.54,130.43,8.3494]
[1742409364616,24.71218374,130.47,130.39,8.3494]
[1742409364913,24.71218374,130.44,130.35,82.53441992]
[1742409365104,44.9232,130.46,130.37,24.71218374]
[1742409365307,229.76,130.47,130.37,26.246279]
[1742409365505,4.2432,130.51,130.4,24.71218374]
[1742409365707,4.2432,130.51,130.41,40.73520442]
[1742409365914,229.78,130.52,130.45,24.71218374]
[1742409366215,40.68,130.55,130.45,65.39218374]
[1742409366416,40.68,130.55,130.46,4.1709]
[1742409366615,7.663,130.5,130.46,4.1709]
[1742409366815,7.663,130.5,130.49,0.04825339]
[1742409367206,7.663,130.5,130.49,5.339e-05]
[1742409368804,7.663,130.5,130.39,3.9742]
[1742409368805,262.19218374,130.5,130.39,3.9742]
[1742409369015,24.71218374,130.47,130.39,3.9742]
[1742409369214,65.37218374,130.47,130.39,3.9742]
[1742409369717,65.37218374,130.47,130.39,11.6429]
[1742409369918,0.05429753,130.44,130.42,0.05213069]
[1742409371817,270.48,130.5,130.42,0.05213069]
[1742409372017,270.48,130.5,130.42,40.66]
[1742409372524,7.6639,130.48,130.42,40.66]
[1742409372816,270.48,130.5,130.42,40.66]
[1742409373121,7.6622,130.51,130.46,7.6644]
[1742409373322,295.21218374,130.55,130.45,8.3106]
[1742409373821,7.6615,130.52,130.47,7.664]
[1742409374022,7.6615,130.52,130.45,8.3106]
[1742409374223,295.21218374,130.55,130.46,40.64]
[1742409374423,0.0581874,130.5,130.47,0.05609036]
[1742409374923,0.0581874,130.5,130.49,7.6632]
[1742409375422,0.0581874,130.5,130.48,7.6636]
[1742409375724,0.0581874,130.5,130.47,0.05706482]
[1742409375919,0.0581874,130.5,130.49,7.6632]
[1742409376319,229.86,130.55,130.47,24.76924856]
[1742409376522,7.659,130.57,130.53,7.6609]
[1742409376818,229.88,130.6,130.5,65.33218374]
[1742409377019,229.88,130.6,130.51,44.7924]
[1742409377227,229.88,130.6,130.52,7.6611]
[1742409377425,0.05178585,130.57,130.54,0.0487955]
[1742409379622,7.6597,130.55,130.54,0.0487955]
[1742409379818,0.05178585,130.57,130.54,0.0487955]
[1742409380524,0.05178585,130.57,130.52,1.65907628]
[1742409381021,0.05178585,130.57,130.51,4.1724]
[1742409381225,40.65178585,130.57,130.47,40.6]
[1742409381426,24.71218374,130.55,130.47,40.6]
[1742409381921,0.04830617,130.52,130.5,0.05069704]
[1742409384027,7.662,130.51,130.5,0.05069704]
[1742409384531,0.04830617,130.52,130.41,613.55218374]
[1742409384532,24.76048991,130.52,130.41,40.58]
[1742409384717,24.71218374,130.52,130.42,4.2077]
[1742409385122,7.6647,130.47,130.42,52.4549]
[1742409385424,274.3985,130.53,130.43,0.04834774]
[1742409385628,274.3985,130.53,130.42,44.7877]
[1742409385929,0.05650768,130.49,130.47,0.05043226]
[1742409386227,7.6638,130.48,130.47,0.05043226]
[1742409386625,7.6663,130.44,130.42,40.58]
[1742409387026,24.71218374,130.48,130.41,3.9032]
[1742409387226,7.6667,130.44,130.4,4.0296]
[1742409387423,24.71218374,130.48,130.4,4.0296]
[1742409387728,7.6671,130.43,130.4,4.0296]
[1742409388129,0.05744728,130.45,130.4,4.08146956]
[1742409388829,7.6627,130.5,130.42,24.71218374]
[1742409389030,233.8185,130.53,130.43,40.56]
[1742409389425,1.53221481,130.53,130.45,24.71218374]
[1742409389631,1.53221481,130.53,130.48,7.6637]
[1742409389828,0.05254765,130.52,130.47,40.56]
[1742409390031,0.05254765,130.52,130.49,0.05720238]
[1742409390730,1.58487985,130.52,130.49,0.05720238]
[1742409391537,7.6592,130.56,130.49,0.05720238]
[1742409391729,40.56,130.57,130.48,24.71218374]
[1742409392133,7.6613,130.53,130.48,24.71218374]
[1742409392333,52.91609187,130.57,130.48,24.71218374]
[1742409392634,0.05550334,130.54,130.51,0.05205142]
[1742409395237,0.05550334,130.54,130.51,40.57205142]
[1742409395433,0.05550334,130.54,130.53,7.6609]
[1742409396134,0.05550334,130.54,130.52,11.6158]
[1742409396438,0.05550334,130.54,130.52,3.9544]
[1742409396839,0.05550334,130.54,130.53,7.6609]
[1742409398146,0.05550334,130.54,130.52,11.6157]
[1742409398344,0.05550334,130.54,130.51,40.57205142]
[1742409398740,0.05550334,130.54,130.51,0.05205142]
[1742409401147,0.05550334,130.54,130.53,7.6609]
[1742409401345,0.05550334,130.54,130.51,0.05205142]
[1742409401346,8.2411,130.61,130.51,24.76423516]
[1742409401643,8.2411,130.61,130.55,7.6595]
[1742409401843,8.2411,130.61,130.53,40.48]
[1742409402538,0.04948517,130.58,130.56,0.05185075]
[1742409402946,7.70778517,130.58,130.56,0.05185075]
[1742409403144,0.04948517,130.58,130.56,0.05185075]
[1742409404548,7.6585,130.57,130.56,0.05185075]
[1742409407850,65.20166891,130.58,130.5,40.44]
[1742409408043,65.15218374,130.58,130.51,7.662]
[1742409408245,7.6593,130.56,130.5,40.44]
[1742409408442,40.44,130.58,130.5,40.44]
[1742409408646,40.44,130.58,130.51,7.6618]
[1742409408951,0.052709,130.55,130.53,0.05221366]
[1742409409451,7.6606,130.54,130.53,0.05221366]
[1742409410149,7.712609,130.55,130.53,0.05221366]
[1742409410546,0.052709,130.55,130.53,0.05221366]
[1742409411453,7.6603,130.54,130.53,0.05221366]
[1742409411753,24.76489274,130.55,130.45,24.71218374]
[1742409411951,24.71218374,130.52,130.44,8.0374]
[1742409412150,24.71218374,130.52,130.41,45.76041992]
[1742409412351,24.71218374,130.52,130.41,86.18041992]
[1742409412551,7.6648,130.47,130.43,7.6663]
[1742409412749,40.42,130.5,130.41,86.18041992]
[1742409413056,7.6656,130.45,130.44,0.05682378]
[1742409414950,7.6673,130.42,130.41,41.85441992]
[1742409415148,65.18766707,130.46,130.41,41.85441992]
[1742409415348,65.13218374,130.46,130.41,41.85441992]
[1742409415554,65.13218374,130.46,130.34,66.56660366]
[1742409415749,65.13218374,130.46,130.35,8.078]
[1742409415950,0.05242253,130.42,130.4,0.05040901]
[1742409416547,65.18460627,130.42,130.34,49.52621992]
[1742409416757,65.13218374,130.42,130.34,49.52621992]
[1742409416951,65.13218374,130.42,130.34,41.85441992]
[1742409417352,24.71218374,130.4,130.34,41.85441992]
[1742409417560,7.6694,130.39,130.34,41.85441992]
[1742409417859,0.05156378,130.38,130.36,0.05077661]
[1742409418260,0.05156378,130.38,130.29,40.4]
[1742409418457,0.05156378,130.38,130.28,24.71218374]
[1742409418660,7.6711,130.36,130.3,7.6741]
[1742409418857,40.4,130.38,130.28,24.71218374]
[1742409419058,40.4,130.38,130.29,40.4]
[1742409419361,0.05488236,130.35,130.34,7.6717]
[1742409420753,0.05488236,130.35,130.33,0.05798947]
[1742409420754,270.3,130.42,130.33,40.45798947]
[1742409420953,270.3,130.42,130.33,40.4]
[1742409421353,7.668,130.41,130.33,40.4]
[1742409421556,270.3,130.42,130.33,40.4]
[1742409421758,0.05248017,130.39,130.36,0.04833869]
[1742409422258,0.05248017,130.39,130.36,7.71893869]
[1742409422565,0.05248017,130.39,130.36,0.04833869]
[1742409422766,0.05248017,130.39,130.38,7.6697]
[1742409423364,0.05248017,130.39,130.37,7.6699]
[1742409423565,0.05248017,130.39,130.36,0.04833869]
[1742409423965,0.05248017,130.39,130.38,7.6697]
[1742409424672,0.05248017,130.39,130.36,0.04833869]
[1742409424972,0.05248017,130.39,130.36,7.71903869]
[1742409425169,0.05248017,130.39,130.36,0.04833869]
[1742409427974,0.05248017,130.39,130.37,7.6699]
[1742409428273,0.05248017,130.39,130.36,0.04833869]
[1742409428665,0.05248017,130.39,130.38,7.6697]
[1742409429269,0.05248017,130.39,130.37,7.6701]
[1742409429575,0.05248017,130.39,130.36,0.04833869]
[1742409429978,0.05248017,130.39,130.38,7.6697]
[1742409432076,258.93178374,130.47,130.42,7.667]
[1742409432275,299.29178374,130.47,130.37,40.36]
[1742409432875,7.6674,130.42,130.37,40.36]
[1742409433377,0.04992689,130.41,130.39,7.6688]
[1742409434276,0.04992689,130.41,130.38,0.05304288]
[1742409435576,7.6691,130.39,130.38,0.05304288]
[1742409436181,7.6688,130.4,130.38,0.05304288]
[1742409436381,3.95052689,130.41,130.38,0.05304288]
[1742409436583,0.04992689,130.41,130.38,0.05304288]
[1742409436974,0.04992689,130.41,130.38,7.96614288]
[1742409437175,0.04992689,130.41,130.4,7.6685]
[1742409437784,0.04992689,130.41,130.38,7.96614288]
[1742409438088,0.04992689,130.41,130.38,4.03914288]
[1742409438279,7.6689,130.4,130.38,4.03914288]
[1742409438480,0.04992689,130.41,130.38,4.03914288]
[1742409438686,0.04992689,130.41,130.38,0.05304288]
[1742409438888,7.6688,130.4,130.38,0.05304288]
[1742409439280,0.04992689,130.41,130.38,0.05304288]
[1742409439482,0.04992689,130.41,130.4,7.6685]
[1742409439682,0.04992689,130.41,130.38,0.05304288]
[1742409439977,0.04992689,130.41,130.39,7.6688]
[1742409440389,0.04992689,130.41,130.38,0.05304288]
[1742409441685,0.04992689,130.41,130.4,7.6685]
[1742409442084,0.04992689,130.41,130.38,0.05304288]
[1742409442686,0.04992689,130.41,130.4,7.6685]
[1742409443080,3.9006,130.46,130.39,3.9914]
[1742409443388,230.0,130.47,130.42,7.667]
[1742409443787,230.0,130.47,130.41,40.28]
[1742409444185,0.04912104,130.45,130.43,0.04963884]
[1742409444390,7.6662,130.44,130.43,0.04963884]
[1742409445686,7.6688,130.4,130.38,40.28]
[1742409445887,48.668,130.46,130.38,40.28]
[1742409446190,24.71218374,130.45,130.39,7.6688]
[1742409446392,24.71218374,130.45,130.38,40.28]
[1742409446689,28.65398374,130.51,130.38,64.99218374]
[1742409446890,0.05580036,130.43,130.4,0.05331758]
[1742409447090,7.6646,130.47,130.38,64.99218374]
[1742409447291,0.05358504,130.43,130.4,0.05585178]
[1742409447593,7.664,130.48,130.41,24.71218374]
[1742409447791,3.9418,130.51,130.42,48.4939]
[1742409447987,297.11416424,130.52,130.42,48.4939]
[1742409448689,0.05353289,130.48,130.46,0.05202536]
[1742409449181,7.71773289,130.48,130.46,0.05202536]
[1742409449491,0.05353289,130.48,130.46,0.05202536]
[1742409449888,0.05353289,130.48,130.47,7.6644]
[1742409450187,0.05353289,130.48,130.46,0.05202536]
[1742409450188,42.3819805,130.52,130.46,40.29202536]
[1742409450596,24.71218374,130.55,130.46,40.29202536]
[1742409450793,7.6631,130.5,130.46,40.24]
[1742409450994,24.71218374,130.55,130.47,7.6644]
[1742409451293,7.6631,130.5,130.46,40.24]
[1742409451497,7.6631,130.5,130.47,7.6643]
[1742409451689,24.71218374,130.55,130.47,7.72321696]
[1742409451987,0.04931389,130.5,130.46,40.24]
[1742409452393,7.664,130.48,130.47,0.04898678]
[1742409453791,64.98373033,130.49,130.41,40.22]
[1742409454087,24.71218374,130.46,130.4,40.22]
[1742409454496,24.71218374,130.42,130.36,41.85441992]
[1742409454893,7.6697,130.39,130.38,0.05748979]
[1742409456692,0.04994766,130.4,130.38,0.05748979]
[1742409457387,7.6691,130.39,130.38,0.05748979]
[1742409457991,0.04994766,130.4,130.38,0.05748979]
[1742409458493,7.6691,130.39,130.38,0.05748979]
[1742409458792,0.04994766,130.4,130.38,0.05748979]
[1742409459998,7.6691,130.39,130.38,0.05748979]
[1742409462289,0.04994766,130.4,130.38,0.05748979]
[1742409463396,0.04994766,130.4,130.39,7.6691]
[1742409463692,8.4045,130.47,130.38,0.05748979]
[1742409463891,4.1767,130.47,130.38,3.9572]
[1742409464091,7.6652,130.46,130.38,3.9572]
[1742409464591,258.64098374,130.48,130.38,3.9572]
[1742409464592,230.02,130.48,130.39,24.71218374]
[1742409464785,8.4383,130.51,130.41,0.05818751]
[1742409464989,11.839,130.51,130.48,7.6638]
[1742409465190,4.0327,130.52,130.48,7.6638]
[1742409465395,230.02,130.53,130.48,7.6638]
[1742409465589,230.02,130.53,130.45,40.16]
[1742409465790,254.73218374,130.53,130.45,40.16]
[1742409465997,0.05182449,130.5,130.48,0.0497526]
[1742409466890,24.71218374,130.56,130.49,40.16]
[1742409467592,24.71218374,130.56,130.46,8.0654]
[1742409467899,7.6612,130.53,130.48,7.6633]
[1742409468100,0.04998221,130.52,130.5,0.0564037]
[1742409469699,7.71178221,130.52,130.5,0.0564037]
[1742409470096,0.04998221,130.52,130.5,0.0564037]
[1742409470402,7.662,130.51,130.5,0.0564037]
[1742409476903,24.76216595,130.52,130.44,40.08]
[1742409477097,24.71218374,130.52,130.43,3.9335]
[1742409477300,7.6667,130.43,130.37,24.71218374]
[1742409477505,24.71218374,130.48,130.4,40.08]
[1742409477808,24.71218374,130.48,130.4,47.7484]
[1742409478008,7.6668,130.43,130.4,40.08]
[1742409478405,7.6668,130.43,130.4,40.13127072]
[1742409478708,7.6665,130.44,130.4,40.13127072]
[1742409478908,0.04849623,130.45,130.4,7.71947072]
[1742409479509,0.04849623,130.45,130.4,0.05127072]
[1742409480109,0.04849623,130.45,130.4,7.71967072]
[1742409480307,7.6666,130.44,130.4,0.05127072]
[1742409480513,0.04849623,130.45,130.43,7.6665]
[1742409480803,0.04849623,130.45,130.39,52.41609187]
[1742409481007,0.04849623,130.45,130.43,0.05097299]
[1742409483002,7.71459623,130.45,130.43,0.05097299]
[1742409483206,0.04849623,130.45,130.43,0.05097299]
[1742409483514,0.04849623,130.45,130.44,7.6662]
[1742409483906,0.04849623,130.45,130.43,40.09097299]
[1742409484107,7.6662,130.44,130.43,0.05097299]
[1742409484514,7.71439623,130.45,130.43,0.05097299]
[1742409484708,0.04849623,130.45,130.43,40.09097299]
[1742409484908,274.2532,130.51,130.44,4.0886]
[1742409485109,234.1732,130.51,130.44,4.0886]
[1742409485812,24.71218374,130.54,130.44,28.80078374]
[1742409486017,0.0498962,130.49,130.46,0.05518377]
[1742409486316,0.0498962,130.49,130.44,28.80078374]
[1742409486317,0.0498962,130.49,130.47,40.04]
[1742409486517,0.0498962,130.49,130.46,0.05632139]
[1742409487617,0.0498962,130.49,130.46,7.72102139]
[1742409487618,7.7131962,130.49,130.46,7.72102139]
[1742409487813,0.0498962,130.49,130.46,0.05632139]
[1742409488117,7.6611,130.53,130.5,7.6623]
[1742409488611,7.6616,130.52,130.49,7.6629]
[1742409488919,24.71218374,130.55,130.44,4.0886]
[1742409489116,0.04936761,130.52,130.46,7.6647]
[1742409489312,0.04936761,130.52,130.48,0.05000737]
[1742409489514,40.0,130.53,130.48,0.05000737]
[1742409489718,24.76228655,130.51,130.48,0.05000737]
[1742409489918,7.6632,130.49,130.48,0.05000737]
[1742409492415,7.6632,130.49,130.38,1.33386995]
[1742409492416,7.6668,130.43,130.38,1.33386995]
[1742409492719,7.6668,130.43,130.4,7.6682]
[1742409492915,40.0,130.49,130.38,33.10448374]